bitfinex/quotes_ETHUSD_20241108
["timestamp","ask_amount","ask_price","bid_price","bid_amount"]
[1731086459448,0.7769,2899.1,2898.6,0.40967362]
[1731086459657,0.7769,2899.1,2898.6,0.3406906]
[1731086459855,0.7769,2899.1,2898.3,0.38357437]
[1731086460179,0.7769,2899.1,2897.9,3.33791633]
[1731086460469,0.8024,2898.9,2897.6,3.69560023]
[1731086460624,0.88866205,2898.8,2897.6,3.33791633]
[1731086460830,0.88866205,2898.8,2897.7,0.06900964]
[1731086461129,0.88866205,2898.8,2897.9,3.33791633]
[1731086461130,0.8024,2898.8,2897.9,3.33791633]
[1731086461973,0.8024,2898.8,2898.2,3.33791633]
[1731086462168,0.8024,2898.8,2898.3,0.06899283]
[1731086462739,0.8024,2898.8,2897.9,3.33791633]
[1731086462927,0.8024,2898.8,2898.0,3.0]
[1731086463128,0.8024,2898.8,2898.0,3.63379163]
[1731086464205,0.8024,2898.8,2898.0,0.63379163]
[1731086465027,0.8024,2898.8,2898.1,0.06900068]
[1731086465639,0.8024,2898.8,2898.2,3.33791633]
[1731086466072,0.8024,2898.8,2898.3,0.06899639]
[1731086466775,0.8024,2898.8,2898.0,0.63379163]
[1731086466975,0.8024,2898.8,2898.1,0.4733208]
[1731086468346,0.8024,2898.8,2898.0,0.06899937]
[1731086468549,0.7899,2898.6,2897.3,3.33791633]
[1731086468967,0.8164,2898.4,2897.0,3.33791633]
[1731086469117,0.0862629,2898.5,2896.3,7.85504416]
[1731086469118,0.0862788,2898.3,2896.7,3.33791633]
[1731086469276,0.0862788,2898.3,2896.8,0.33379163]
[1731086469277,0.8164,2898.1,2896.8,0.33379163]
[1731086469473,3.0,2898.2,2896.4,3.33791633]
[1731086469474,0.84798592,2898.0,2896.4,3.33791633]
[1731086469699,0.84798592,2898.0,2896.5,0.35827019]
[1731086469983,0.7617,2897.9,2896.7,3.33791633]
[1731086470204,0.7617,2897.7,2896.8,0.06902905]
[1731086470405,0.84798636,2897.6,2896.5,0.35827019]
[1731086470618,0.84798636,2897.6,2896.5,3.0]
[1731086470822,0.84798636,2897.6,2896.6,0.06903325]
[1731086472216,0.84798636,2897.6,2896.5,0.63379163]
[1731086472425,0.84798636,2897.6,2896.1,0.7636]
[1731086472426,0.84798636,2897.6,2896.1,4.10151633]
[1731086472578,0.84798636,2897.6,2896.1,3.33791633]
[1731086472777,0.55,2897.5,2896.1,3.33791633]
[1731086472983,0.55,2897.3,2895.8,3.33791633]
[1731086473304,0.7946,2897.1,2895.8,3.33791633]
[1731086473528,0.7714,2896.9,2895.8,3.67170796]
[1731086473720,0.7714,2896.9,2896.1,3.33791633]
[1731086474024,0.7714,2896.9,2896.4,3.33791633]
[1731086474226,0.7714,2896.9,2896.5,0.33379163]
[1731086474378,0.7714,2896.9,2896.1,3.33791633]
[1731086474902,0.7714,2896.9,2895.9,3.0]
[1731086475218,0.7714,2896.9,2895.8,3.67170796]
[1731086475387,0.7714,2896.9,2896.0,3.90886853]
[1731086475714,0.7714,2896.9,2896.0,3.83982103]
[1731086475902,0.7714,2896.9,2896.1,0.3839821]
[1731086476105,0.7714,2896.9,2896.2,0.06903859]
[1731086476460,0.7714,2896.9,2896.3,0.06903836]
[1731086476596,0.7714,2896.9,2896.1,4.1927821]
[1731086477719,0.7714,2896.9,2896.1,3.3839821]
[1731086477890,0.7714,2896.9,2896.2,0.79142268]
[1731086478494,0.7714,2896.9,2896.2,0.72238031]
[1731086479025,0.7714,2896.9,2896.4,3.83982103]
[1731086479180,3.0,2897.7,2896.4,3.83982103]
[1731086479181,0.8329,2897.5,2896.8,3.83982103]
[1731086479384,0.8329,2898.3,2896.9,0.85692123]
[1731086479593,0.8329,2898.3,2897.2,3.83982103]
[1731086479918,0.8329,2898.3,2897.3,0.06901261]
[1731086480119,0.8329,2898.3,2897.2,3.83982103]
[1731086480723,0.8329,2898.3,2897.3,0.06901483]
[1731086481094,0.8329,2898.3,2897.3,3.06901483]
[1731086481299,0.8329,2898.3,2897.4,0.69088359]
[1731086481596,0.8329,2898.3,2897.5,0.06901063]
[1731086481805,0.8329,2898.3,2897.4,0.69088359]
[1731086482097,0.90306788,2898.2,2896.4,3.83982103]
[1731086482352,0.8068,2897.9,2896.2,0.72238031]
[1731086482514,0.8116,2897.7,2896.2,0.72238031]
[1731086482707,0.8016,2897.5,2896.3,0.06904021]
[1731086482922,0.8016,2897.3,2896.3,0.06904021]
[1731086483227,0.8016,2897.1,2896.3,0.06904021]
[1731086483796,0.8016,2897.1,2896.4,3.83982103]
[1731086484043,0.8016,2897.1,2896.5,0.06903277]
[1731086485108,0.8016,2897.1,2896.4,3.83982103]
[1731086485851,0.01,2897.9,2896.4,3.83982103]
[1731086485852,0.08629848,2897.0,2896.4,3.83982103]
[1731086486141,0.7939,2897.3,2896.4,3.83982103]
[1731086486443,0.7939,2897.3,2896.5,0.0690388]
[1731086486634,0.7939,2897.3,2896.4,3.83982103]
[1731086487137,0.7939,2897.3,2896.5,0.06903832]
[1731086488059,0.7939,2897.3,2896.4,4.22380313]
[1731086488468,0.7939,2897.3,2896.5,3.8442277]
[1731086489058,0.7939,2897.3,2896.5,3.7752]
[1731086489751,0.7939,2897.3,2896.6,0.06902772]
[1731086489928,0.7939,2897.3,2896.7,0.38442277]
[1731086490646,0.7939,2897.3,2896.5,3.0]
[1731086491241,0.7939,2897.3,2896.6,0.06903351]
[1731086491929,0.7939,2897.3,2896.4,4.22380313]
[1731086492275,0.7939,2897.3,2896.5,0.06903104]
[1731086492577,3.0,2898.1,2896.5,3.0]
[1731086492578,2.64852862,2898.1,2896.5,3.0]
[1731086492722,3.84982103,2898.6,2896.9,3.0]
[1731086492723,3.0,2898.5,2896.9,3.0]
[1731086492929,12.38,2898.6,2897.0,0.0690182]
[1731086493272,12.38,2899.0,2897.2,3.83982103]
[1731086493439,12.39,2899.0,2897.2,3.83982103]
[1731086493643,1.31354474,2898.9,2897.3,0.3839821]
[1731086493964,1.31354474,2898.9,2897.3,0.45299107]
[1731086494761,1.31354474,2898.9,2897.6,3.83982103]
[1731086494969,12.38,2899.3,2897.7,0.06900348]
[1731086495541,0.2979,2899.2,2897.7,0.06900348]
[1731086495984,0.2979,2899.2,2897.6,3.83982103]
[1731086496130,0.2979,2899.1,2897.7,0.06900445]
[1731086496328,0.2979,2898.9,2897.8,0.39088255]
[1731086496576,0.2979,2898.9,2897.9,0.06900445]
[1731086497959,0.2979,2898.9,2897.8,0.39088255]
[1731086497960,0.2979,2898.9,2898.0,4.65292103]
[1731086498281,0.2979,2898.9,2898.1,0.06899471]
[1731086498448,0.2979,2899.4,2898.1,3.06899471]
[1731086499234,0.2979,2899.4,2898.5,3.7804]
[1731086499435,0.2979,2899.4,2898.8,3.83982103]
[1731086499637,0.2979,2900.1,2898.9,0.3839821]
[1731086499846,0.0079,2900.5,2899.0,0.0021]
[1731086500354,0.0079,2900.5,2899.0,0.07107713]
[1731086500679,0.0079,2900.5,2899.1,0.7949]
[1731086500977,3.0079,2900.5,2898.9,0.3839821]
[1731086501182,1.53879,2900.4,2899.0,0.42259031]
[1731086501493,1.53879,2900.4,2899.0,0.42469031]
[1731086501652,1.53879,2900.4,2899.1,0.06897405]
[1731086501843,1.53879,2900.4,2899.2,4.63732103]
[1731086502043,1.53879,2900.4,2899.3,0.06896715]
[1731086502248,12.38,2900.9,2899.4,0.47083882]
[1731086502484,12.38,2900.9,2899.5,0.06896713]
[1731086503563,12.38,2900.9,2899.6,0.06896076]
[1731086503768,12.38,2900.9,2899.4,0.47083882]
[1731086504261,3.0,2900.8,2899.4,0.47083882]
[1731086504463,3.0,2900.8,2899.2,0.7975]
[1731086504712,0.55,2900.7,2899.0,0.42469031]
[1731086505296,0.55,2900.7,2899.1,0.06897409]
[1731086505503,0.01,2900.6,2899.1,0.06897409]
[1731086505709,0.0079,2900.5,2898.9,0.7625]
[1731086505998,0.0079,2900.5,2899.0,0.50249113]
[1731086506403,0.0079,2900.5,2899.1,0.06897695]
[1731086506607,0.01,2900.6,2899.1,0.06897695]
[1731086506903,0.0079,2900.5,2899.1,0.06897695]
[1731086507610,0.55,2900.7,2899.1,0.06897695]
[1731086507902,0.355,2900.6,2899.1,0.06897695]
[1731086508065,3.0,2900.5,2899.1,0.06897695]
[1731086508269,3.0,2900.5,2899.3,0.8149]
[1731086510167,3.0,2900.5,2899.4,0.06896535]
[1731086510372,3.0,2900.5,2899.3,0.8149]
[1731086510580,1.5735,2900.4,2899.4,0.0689716]
[1731086510926,1.5735,2900.4,2899.4,0.06897249]
[1731086511374,1.5735,2900.4,2899.3,0.8149]
[1731086511569,1.5735,2900.4,2899.4,0.06896371]
[1731086512277,1.5735,2900.4,2899.3,0.8149]
[1731086512469,0.45735,2900.3,2899.3,1.2805821]
[1731086512907,0.355,2900.6,2899.3,1.2805821]
[1731086513108,0.0079,2900.8,2899.3,1.2805821]
[1731086513593,0.0079,2900.9,2899.3,1.2805821]
[1731086513911,3.0,2900.8,2899.4,0.7708]
[1731086514666,3.0,2900.8,2899.3,0.4656821]
[1731086514667,12.38,2900.9,2899.5,0.86146354]
[1731086514894,12.38,2900.9,2899.5,0.7904]
[1731086515205,1.238,2900.8,2899.5,0.86146355]
[1731086515728,1.238,2900.8,2899.5,0.85936355]
[1731086515906,4.238,2900.8,2899.5,0.7904]
[1731086516108,4.6618,2900.7,2899.5,0.7904]
[1731086516404,1.6618,2900.7,2899.5,0.7904]
[1731086517407,0.55,2900.6,2899.5,0.7904]
[1731086518072,1.6618,2900.7,2899.6,0.06897386]
[1731086518313,1.6618,2900.7,2899.7,0.7513]
[1731086518483,1.70418,2900.6,2899.7,0.7513]
[1731086520516,1.70418,2900.6,2899.8,0.06895685]
[1731086521225,1.70418,2900.6,2899.7,0.7513]
[1731086522687,1.70418,2900.6,2899.3,0.7681]
[1731086522888,4.70418,2900.6,2899.3,0.7681]
[1731086523108,4.708418,2900.5,2899.3,0.7681]
[1731086523316,1.708418,2900.5,2899.3,0.7681]
[1731086524914,3.55,2900.4,2899.3,0.7681]
[1731086525843,3.55,2900.4,2899.4,0.06897899]
[1731086525844,3.0,2900.4,2899.4,0.06897899]
[1731086526026,3.0,2900.4,2899.3,0.7681]
[1731086526235,1.7088418,2900.3,2899.3,0.7681]
[1731086526619,3.0,2900.5,2899.5,0.7555]
[1731086529250,0.55,2900.4,2899.5,0.7555]
[1731086531474,0.55,2900.4,2898.6,0.0021]
[1731086531475,3.0179,2900.3,2898.7,0.7562]
[1731086531758,3.0,2900.1,2898.7,0.82518864]
[1731086531973,1.593,2900.0,2898.7,0.82518864]
[1731086532112,3.0,2899.9,2898.7,0.82518864]
[1731086532634,13.973,2900.0,2899.0,0.7946]
[1731086532635,1.593,2900.0,2899.0,0.7946]
[1731086532951,3.0,2900.5,2898.9,3.33680564]
[1731086532952,3.0,2900.5,2899.1,0.84787481]
[1731086533369,12.38,2900.6,2899.1,0.84787481]
[1731086534462,12.38,2900.6,2899.1,0.7789]
[1731086534616,0.55,2900.4,2899.1,0.7789]
[1731086536015,0.0079,2900.3,2899.1,0.7789]
[1731086536412,0.55,2900.2,2899.1,0.7789]
[1731086536624,0.55,2900.0,2899.1,0.7789]
[1731086536825,3.55,2900.0,2899.1,0.7789]
[1731086537064,4.2693294,2900.0,2899.1,0.7789]
[1731086537232,0.55,2899.8,2899.1,0.7789]
[1731086537434,3.55,2899.8,2899.1,0.7789]
[1731086537727,0.42593294,2899.7,2899.1,0.7789]
[1731086537939,3.0,2899.6,2899.1,0.7789]
[1731086538135,3.0,2899.6,2898.4,0.7517]
[1731086538380,0.58800169,2899.5,2898.4,0.7517]
[1731086538782,0.31748315,2899.4,2898.4,0.7517]
[1731086539090,18.10939238,2899.4,2898.4,0.7517]
[1731086539269,3.0,2899.2,2898.4,0.7517]
[1731086539601,3.5579,2898.8,2897.3,0.772]
[1731086539743,7.59613504,2898.6,2897.3,0.772]
[1731086540082,2.49659525,2898.5,2897.3,0.772]
[1731086540255,1.63271085,2898.4,2897.3,0.772]
[1731086540449,1.0447395,2898.4,2897.3,0.772]
[1731086540971,3.0,2898.2,2897.3,0.772]
[1731086541142,15.38,2898.2,2897.3,0.772]
[1731086545179,15.38,2898.2,2896.4,3.0]
[1731086545180,3.0,2898.6,2897.5,0.7569]
[1731086545384,4.538,2898.6,2897.5,0.7569]
[1731086546041,0.70989274,2899.2,2897.7,0.8224]
[1731086546249,14.5325198,2899.3,2897.7,0.8224]
[1731086546776,14.5246198,2899.3,2897.7,0.8224]
[1731086546946,12.38,2899.6,2898.1,0.7674]
[1731086547292,12.38,2899.6,2897.9,3.8391974]
[1731086547293,12.38,2899.6,2898.6,0.7674]
[1731086547590,0.35579,2900.1,2898.8,0.7674]
[1731086547771,0.35579,2900.1,2898.6,0.7674]
[1731086547987,1.273579,2900.0,2898.6,0.7674]
[1731086548373,12.38,2900.2,2898.7,0.06898065]
[1731086548672,12.38,2900.4,2898.9,0.8315]
[1731086548879,12.38,2900.4,2899.1,0.8315]
[1731086549402,12.38,2900.4,2899.3,0.7845]
[1731086549569,12.38,2900.6,2899.3,0.7845]
[1731086549900,1.238,2900.5,2899.3,0.7845]
[1731086551477,4.238,2900.5,2899.3,0.7845]
[1731086552775,0.55,2900.4,2899.3,0.7845]
[1731086554230,0.55,2900.2,2899.3,0.7845]
[1731086554584,0.55,2900.3,2899.3,0.7845]
[1731086554801,0.55,2900.1,2899.3,0.7845]
[1731086554968,0.42598927,2900.2,2899.3,0.7845]
[1731086555313,5.0771974,2900.5,2899.3,0.7845]
[1731086555314,4.238,2900.5,2899.3,0.7845]
[1731086555513,16.618,2900.5,2899.4,0.06897503]
[1731086555836,1.238,2900.5,2899.4,0.068971]
[1731086555985,1.238,2900.5,2899.5,0.7555]
[1731086556191,12.38,2900.9,2899.6,0.82447077]
[1731086556485,12.38,2900.9,2899.6,0.7555]
[1731086557183,12.38,2900.9,2899.8,0.7896]
[1731086558183,3.0,2900.8,2899.8,0.7896]
[1731086559509,3.0,2900.8,2899.9,0.8338658]
[1731086559703,3.0,2901.1,2899.9,0.8338658]
[1731086559937,1.40831392,2901.0,2899.9,0.7649]
[1731086560104,0.82077927,2901.0,2899.9,0.7649]
[1731086560307,3.0,2900.8,2899.9,0.7649]
[1731086560602,1.4899872,2900.7,2899.9,0.7649]
[1731086560858,1.4899872,2900.7,2899.0,0.8229]
[1731086560859,0.5579,2900.6,2899.0,0.8229]
[1731086561034,3.55,2900.4,2899.0,0.8229]
[1731086561910,0.55,2900.2,2899.0,0.8229]
[1731086562106,4.26779274,2900.4,2899.0,0.8229]
[1731086562311,0.55,2900.2,2899.0,0.8229]
[1731086562508,3.55,2900.2,2899.0,0.8229]
[1731086562904,15.9379,2900.2,2899.0,0.8229]
[1731086564264,15.93,2900.2,2899.0,0.8229]
[1731086566674,15.38,2900.2,2899.0,0.8229]
[1731086567730,15.38,2900.2,2899.1,0.06898086]
[1731086568070,15.38,2900.2,2899.2,0.7632]
[1731086569560,17.1229699,2900.2,2899.2,0.7632]
[1731086570058,0.55,2900.1,2899.2,0.7632]
[1731086570772,0.55,2899.9,2899.2,0.7632]
[1731086570945,12.38,2899.8,2899.2,0.7632]
[1731086571129,3.0,2899.7,2899.2,0.7632]
[1731086574372,15.38,2899.7,2899.2,0.7632]
[1731086574571,15.38,2899.7,2898.8,0.8256]
[1731086574572,0.55,2899.6,2898.8,0.8256]
[1731086574784,0.55,2899.6,2897.8,0.8256]
[1731086574785,3.55,2899.4,2897.8,0.8256]
[1731086574933,3.0,2899.2,2897.8,0.8256]
[1731086575647,0.55,2899.1,2897.8,0.8256]
[1731086576770,1.25989274,2899.1,2897.8,0.8256]
[1731086577081,0.55,2899.1,2897.8,0.8256]
[1731086579174,3.0,2898.9,2897.8,0.8256]
[1731086579539,3.0,2898.9,2897.9,0.88890872]
[1731086579740,3.0,2898.9,2897.9,0.8199]
[1731086581981,15.38,2898.9,2897.9,0.8199]
[1731086582582,15.38,2898.9,2898.1,0.82]
[1731086583120,12.38,2898.9,2898.1,0.82]
[1731086584389,3.0,2899.5,2898.2,0.06900598]
[1731086584602,12.38,2899.6,2898.2,0.06900598]
[1731086584603,12.38,2899.6,2898.4,0.82]
[1731086584816,12.38,2900.0,2898.6,0.82]
[1731086584989,12.38,2900.0,2898.5,3.90819039]
[1731086584990,12.38,2900.0,2898.7,0.88898862]
[1731086585478,12.38,2900.0,2898.7,0.82]
[1731086585678,7.49,2900.1,2898.7,0.82]
[1731086585679,12.38,2900.1,2898.7,0.82]
[1731086585874,1.41229699,2900.0,2898.7,0.82]
[1731086586324,1.41229699,2900.0,2898.8,0.7578]
[1731086587225,0.55,2899.9,2898.8,0.7578]
[1731086587715,4.25989274,2899.9,2898.8,0.7578]
[1731086587920,0.55,2899.7,2898.8,0.7578]
[1731086588077,0.41370488,2899.6,2898.8,0.7578]
[1731086588278,0.55,2899.8,2898.8,0.7578]
[1731086589110,3.0,2899.7,2898.8,0.7578]
[1731086589293,1.25989274,2899.8,2898.8,0.7578]
[1731086589491,0.55,2899.6,2898.8,0.7578]
[1731086589998,0.55,2899.7,2898.8,0.7578]
[1731086590317,1.25989274,2899.7,2898.8,0.7578]
[1731086590521,0.27293933,2899.6,2898.8,0.7578]
[1731086590926,12.65293933,2899.6,2898.8,0.7578]
[1731086591127,3.0,2899.5,2898.8,0.7578]
[1731086591719,12.65293933,2899.6,2898.8,0.7578]
[1731086591720,12.38,2899.6,2898.8,0.7578]
[1731086592883,3.0,2899.5,2898.8,0.7578]
[1731086593089,1.538,2899.4,2898.8,0.7578]
[1731086593298,1.538,2899.4,2897.3,7.43]
[1731086593299,3.0,2899.2,2897.5,0.0021]
[1731086593502,0.55,2899.1,2897.6,0.7952]
[1731086593827,0.55,2898.9,2897.6,0.7973]
[1731086594042,0.55,2898.9,2897.6,0.7952]
[1731086594430,0.55,2898.9,2897.6,0.7973]
[1731086594623,0.55,2899.0,2897.6,0.7973]
[1731086594827,0.55,2898.8,2897.6,0.7952]
[1731086595047,3.0,2898.6,2897.6,0.7952]
[1731086595218,15.93,2898.6,2897.6,0.7952]
[1731086595745,0.55,2898.4,2897.6,0.7952]
[1731086595906,3.55,2898.1,2896.5,0.7707]
[1731086596101,3.55,2897.9,2896.5,0.7707]
[1731086597005,4.25989274,2897.9,2896.5,0.7707]
[1731086597216,3.55,2897.9,2896.5,0.7707]
[1731086600044,3.0,2897.7,2896.5,0.7707]
[1731086601163,15.38,2897.7,2896.5,0.7707]
[1731086601342,3.0,2897.5,2896.5,0.7707]
[1731086602937,12.93,2897.4,2896.5,0.7707]
[1731086603130,0.55,2897.2,2896.5,0.7707]
[1731086603871,0.55,2897.0,2896.5,0.7707]
[1731086604081,1.293,2896.9,2896.5,0.7707]
[1731086604372,3.0,2896.8,2896.5,0.7707]
[1731086604679,0.55,2896.5,2895.3,0.8138]
[1731086604972,0.0179,2896.9,2895.3,0.8138]
[1731086604973,3.55,2896.3,2895.3,0.8138]
[1731086605158,1.593,2896.2,2895.3,0.8138]
[1731086605870,3.0,2896.3,2895.3,0.8138]
[1731086608887,0.55,2896.6,2895.3,0.8138]
[1731086609036,3.0,2896.7,2895.5,4.6462974]
[1731086609242,3.0,2896.7,2895.6,0.8071]
[1731086609468,1.538,2896.6,2895.8,0.7939]
[1731086610878,0.55,2896.5,2895.8,0.7939]
[1731086613945,1.538,2896.6,2895.8,0.7939]
[1731086614652,3.0,2896.5,2895.8,0.7939]
[1731086617077,0.55,2896.4,2895.8,0.7939]
[1731086617442,3.0,2895.9,2895.5,0.8318]
[1731086617682,3.0,2895.9,2894.7,0.8318]
[1731086617683,3.0,2895.6,2894.7,0.8318]
[1731086617849,15.38,2895.6,2894.7,0.8318]
[1731086618042,17.30759328,2895.6,2894.7,0.8318]
[1731086618282,0.55,2895.5,2894.7,0.8318]
[1731086619286,4.92759328,2895.6,2894.7,0.8318]
[1731086619520,0.55,2895.5,2894.7,0.8318]
[1731086619942,4.92759328,2895.6,2894.7,0.8318]
[1731086620145,3.0,2895.6,2894.7,0.8318]
[1731086623581,3.0,2895.8,2894.7,0.8318]
[1731086624591,3.0,2895.8,2894.8,0.85088598]
[1731086624896,12.38,2896.3,2894.9,0.7797]
[1731086625085,1.238,2896.3,2895.1,0.7886]
[1731086625280,1.238,2896.3,2895.1,0.85767406]
[1731086625759,1.238,2896.3,2895.1,0.7886]
[1731086626874,0.55,2896.2,2895.1,0.7886]
[1731086627082,1.238,2896.3,2895.1,0.7886]
[1731086628397,3.0,2896.4,2895.1,0.7886]
[1731086628598,12.38,2896.7,2895.5,0.8185]
[1731086628799,12.38,2896.7,2895.4,0.0021]
[1731086628800,12.38,2897.0,2895.7,0.8185]
[1731086629517,9.17701199,2897.6,2895.7,0.8185]
[1731086629518,12.38,2897.2,2896.2,0.0021]
[1731086629726,9.028,2897.6,2896.3,0.8316]
[1731086629727,1.238,2897.1,2896.3,0.8316]
[1731086629869,3.85539934,2897.3,2896.3,0.8316]
[1731086630206,12.38,2897.0,2895.4,0.783]
[1731086630410,12.39,2897.1,2895.4,0.7851]
[1731086630565,1.23979,2897.0,2895.4,0.7851]
[1731086630766,4.23979,2897.0,2895.4,0.7851]
[1731086631101,0.55,2896.9,2895.4,0.7851]
[1731086632301,0.55,2896.9,2895.5,0.85207213]
[1731086632511,12.38,2897.1,2895.6,0.7851]
[1731086632810,12.38,2897.5,2896.0,0.7851]
[1731086632962,12.38,2897.5,2896.1,0.0690502]
[1731086633166,12.38,2897.5,2896.2,0.783]
[1731086634973,3.55,2897.4,2896.2,0.783]
[1731086636190,3.0,2897.4,2896.3,0.06904976]
[1731086636390,4.538,2897.4,2896.4,0.7538]
[1731086636610,1.538,2897.4,2896.4,0.7538]
[1731086636805,0.55,2897.7,2896.4,0.7538]
[1731086637013,12.38,2897.6,2896.5,0.0021]
[1731086637171,12.38,2897.6,2896.6,0.7538]
[1731086637370,0.55,2897.8,2896.6,0.7538]
[1731086637371,12.38,2897.7,2896.6,0.7538]
[1731086638322,3.0,2897.6,2896.6,0.7538]
[1731086638493,1.538,2897.5,2896.6,0.7538]
[1731086639717,0.55,2897.4,2896.6,0.7538]
[1731086640595,3.55,2897.2,2896.6,0.7538]
[1731086640965,3.0,2897.2,2896.6,0.7538]
[1731086643817,3.0,2897.2,2896.6,0.5542]
[1731086644001,2.088,2897.1,2896.6,0.5542]
[1731086644212,2.088,2897.1,2895.7,3.34253742]
[1731086644429,2.088,2897.1,2895.5,0.0021]
[1731086644430,3.55,2896.9,2895.5,0.0021]
[1731086644637,3.55,2896.7,2895.2,0.0021]
[1731086644797,0.55,2896.5,2894.9,0.0021]
[1731086644997,3.55,2896.3,2894.9,0.0021]
[1731086645228,3.55,2896.0,2894.3,0.0021]
[1731086645429,3.55,2895.8,2894.6,0.0021]
[1731086645601,3.55,2895.8,2894.5,3.41163044]
[1731086645932,3.0,2895.8,2894.7,0.0021]
[1731086646150,3.9918801,2895.8,2894.9,0.0021]
[1731086646298,3.0,2896.0,2894.9,0.0021]
[1731086646737,3.0,2896.0,2895.0,0.7585]
[1731086647230,0.55,2895.9,2895.0,0.7585]
[1731086648326,3.55,2895.7,2895.0,0.7585]
[1731086648550,0.7496,2895.5,2895.0,0.7585]
[1731086648693,3.7496,2895.5,2894.3,0.8077]
[1731086648896,3.55,2895.3,2894.3,0.8077]
[1731086649190,0.55,2895.3,2894.3,0.8077]
[1731086649393,3.1996,2895.5,2894.3,0.8077]
[1731086649394,0.55,2895.4,2894.3,0.8077]
[1731086649610,0.55,2895.2,2894.3,0.8077]
[1731086652559,0.55,2895.4,2894.3,0.8077]
[1731086652856,3.0,2895.7,2894.3,0.8077]
[1731086653060,0.39044688,2895.6,2894.5,0.7688]
[1731086653222,0.1996,2895.8,2894.5,0.7688]
[1731086653622,0.1996,2895.8,2894.5,0.69936]
[1731086654348,0.55,2895.7,2894.5,0.69936]
[1731086655461,0.9738688,2896.1,2894.6,0.0021]
[1731086655669,12.38,2896.0,2894.6,0.0021]
[1731086656760,3.0,2895.9,2894.7,0.7564]
[1731086656927,0.55,2895.8,2894.7,0.7564]
[1731086658592,0.55,2895.8,2894.7,0.7585]
[1731086658909,12.38,2896.0,2894.8,0.0690914]
[1731086658910,3.0,2895.7,2894.8,0.0690914]
[1731086659106,12.38,2896.0,2895.2,0.7898]
[1731086659261,12.38,2896.4,2895.2,0.7898]
[1731086659457,13.618,2896.4,2895.2,0.7898]
[1731086660401,13.618,2896.4,2895.0,3.84494451]
[1731086660402,12.38,2896.6,2895.5,0.8215]
[1731086660558,1.593,2896.8,2895.6,0.89266113]
[1731086660760,1.593,2896.8,2895.9,0.8215]
[1731086660971,1.593,2896.8,2896.0,0.0021]
[1731086661302,12.38,2897.2,2896.0,0.0021]
[1731086661303,12.38,2897.2,2896.1,0.8215]
[1731086661518,12.38,2897.3,2896.1,0.8215]
[1731086661661,12.38,2897.3,2896.1,0.89055589]
[1731086661976,12.38,2897.3,2896.1,0.8215]
[1731086663702,3.0,2897.2,2896.1,0.8236]
[1731086664001,1.538,2897.1,2896.1,0.8236]
[1731086665184,0.55,2897.4,2896.1,0.8236]
[1731086665879,1.5238688,2897.4,2896.1,0.8215]
[1731086666079,0.55,2897.2,2896.1,0.8215]
[1731086666507,0.55,2897.0,2896.1,0.8215]
[1731086666973,0.55,2897.1,2896.1,0.8215]
[1731086668207,0.55,2897.2,2896.1,0.8215]
[1731086668372,0.55,2897.0,2896.1,0.8215]
[1731086668810,0.55,2897.0,2895.5,0.8271]
[1731086668811,3.84494451,2896.7,2895.5,0.8271]
[1731086669011,0.55,2896.5,2895.5,0.8271]
[1731086669400,12.93,2896.5,2895.5,0.8271]
[1731086669584,4.593,2896.4,2895.5,0.8271]
[1731086671197,3.0,2896.4,2895.6,0.8292]
[1731086671404,12.38,2897.0,2895.8,0.8271]
[1731086671691,12.38,2897.0,2895.8,0.8292]
[1731086672120,12.38,2897.0,2895.8,0.8271]
[1731086672345,12.38,2897.0,2895.8,0.8292]
[1731086672506,12.38,2897.0,2896.0,3.34828197]
[1731086672711,12.38,2897.0,2896.3,0.7594]
[1731086672910,0.42548688,2897.1,2896.3,0.7594]
[1731086673105,12.38,2897.6,2896.3,0.7594]
[1731086673738,0.55,2897.5,2896.3,0.7594]
[1731086673887,3.55,2897.5,2896.3,0.7594]
[1731086676798,0.55,2897.1,2896.3,0.7594]
[1731086678242,0.55,2897.1,2895.9,0.7921]
[1731086678243,3.55,2896.9,2895.9,0.7921]
[1731086678422,3.55,2896.7,2895.9,0.7921]
[1731086680257,3.55,2896.5,2895.9,0.7921]
[1731086681127,3.0,2896.5,2895.9,0.7921]
[1731086682645,12.38,2897.1,2896.0,0.8211]
[1731086682856,12.38,2897.1,2896.2,0.8211]
[1731086683628,0.58684496,2897.0,2896.2,0.8211]
[1731086683858,3.93302693,2897.0,2896.2,0.8211]
[1731086684035,1.13683794,2896.9,2896.2,0.8211]
[1731086684371,0.55,2896.9,2896.2,0.8211]
[1731086684567,3.0,2896.7,2896.2,0.8211]
[1731086685834,0.55,2896.6,2896.2,0.8211]
[1731086686755,3.0,2896.7,2896.2,0.8211]
[1731086688882,3.42548688,2896.8,2896.2,0.8211]
[1731086691591,0.42548688,2896.8,2896.2,0.8211]
[1731086691749,3.0,2897.1,2896.2,0.8211]
[1731086691750,3.7048688,2897.1,2896.2,0.8211]
[1731086692153,3.0,2897.1,2896.2,0.8211]
[1731086692776,0.55,2897.0,2896.2,0.8211]
[1731086693291,3.0,2897.1,2896.2,0.8211]
[1731086693794,3.0,2896.9,2896.2,0.8211]
[1731086694093,1.29826739,2896.8,2896.2,0.8211]
[1731086694457,0.74826739,2896.8,2896.2,0.8211]